Workbook

Sheet 1
A1: الإدارة الصحية بغرب النوبارية التاريخ : / 9 201
A2: مستشفى غر النوبارية المركزي إذن صـــــــرف عــــــــــــــــلاج
A3: إسم المريض : رقم القــرار رقم الفاتوره 1 المبلغ
A4: عواطف محمد سليمان ترابيس | D4: 12515201
A5: م | B5: إســــــــــم الصنف | C5: الكمية | D5: سعر الوحدة | E5: إجمالى القيمة | F5: سعر الشراء | G5: سعر البيع | H5: الفرق
A6: 1 | B6: فاركوبريل بلس | C6: 6 | D6: 1.32 | F6: =C6*D6 -> 7.92 | G6: =F6+H6 -> 8.4744 | H6: =F6*7% -> 0.5544
A7: 2 | B7: فاركوفيت | C7: 3 | D7: 3.36 | F7: =C7*D7 -> 10.08 | G7: =F7+H7 -> 10.7856 | H7: =F7*7% -> 0.7056
A8: 3 | B8: بيبزول | C8: 2 | D8: 6.72 | F8: 13.44 | G8: 14.3808 | H8: 0.9408
A9: 4 | B9: ايزاستانين | C9: 3 | D9: 8.99 | F9: 26.97 | G9: 28.8579 | H9: 1.8879
A10: 5 | F10: 0 | G10: 0 | H10: 0
A11: 6 | F11: 0 | G11: 0 | H11: 0
A12: 7 | F12: 0 | G12: 0 | H12: 0
A13: 8 | F13: 0 | G13: 0 | H13: 0
A14: 9 | F14: 0 | G14: 0 | H14: 0
A15: 10 | F15: 0 | G15: 0 | H15: 0
A16: 11 | F16: 0 | G16: 0 | H16: 0
A17: 12 | F17: 0 | G17: 0 | H17: 0
A18: 13 | F18: 0 | G18: 0 | H18: 0
A19: 14 | F19: 0 | G19: 0 | H19: 0
A20: الإجمالــــــــــى | F20: =SUM(F6:F19) -> 58.41 | G20: =SUM(G6:G19) -> 62.4987 | H20: =SUM(H6:H19) -> 4.0887
A21: اداري الوحده | D21: امين المخزن | G21: د يعتمد

Sheet 2
A1: الإدارة الصحية بغرب النوبارية التاريخ : / / 201
A2: مستشفى غر النوبارية المركزي إذن صـــــــرف عــــــــــــــــلاج
A3: إسم المريض : رقم القــرار رقم الفاتوره 2 المبلغ
A4: هدى عبدالفتاح احمد احمد | D4: 11897043
A5: م | B5: إســــــــــم الصنف | C5: الكمية | D5: سعر الوحدة | E5: إجمالى القيمة | F5: سعر الشراء | G5: سعر البيع | H5: الفرق
A6: 1 | B6: انسولين | C6: 3 | D6: 36 | F6: =C6*D6 -> 108 | G6: =F6+H6 -> 115.56 | H6: =F6*7% -> 7.56
A7: 2 | B7: ديبوفيت | C7: 4 | D7: 1.05 | F7: =C7*D7 -> 4.2 | G7: =F7+H7 -> 4.494 | H7: =F7*7% -> 0.294
A8: 3 | B8: بيبزول | C8: 2 | D8: 6.72 | F8: 13.44 | G8: 14.3808 | H8: 0.9408
A9: 4 | B9: سيدوفاج500 | C9: 3 | D9: 0.98 | F9: 2.94 | G9: 3.1458 | H9: 0.2058
A10: 5 | F10: 0 | G10: 0 | H10: 0
A11: 6 | F11: 0 | G11: 0 | H11: 0
A12: 7 | F12: 0 | G12: 0 | H12: 0
A13: 8 | F13: 0 | G13: 0 | H13: 0
A14: 9 | F14: 0 | G14: 0 | H14: 0
A15: 10 | F15: 0 | G15: 0 | H15: 0
A16: 11 | F16: 0 | G16: 0 | H16: 0
A17: 12 | F17: 0 | G17: 0 | H17: 0
A18: 13 | F18: 0 | G18: 0 | H18: 0
A19: 14 | F19: 0 | G19: 0 | H19: 0
A20: الإجمالــــــــــى | F20: =SUM(F6:F19) -> 128.58 | G20: =SUM(G6:G19) -> 137.5806 | H20: =SUM(H6:H19) -> 9.0006
A21: اداري الوحده | D21: امين المخزن | G21: د يعتمد

Sheet 3
A1: الإدارة الصحية بغرب النوبارية التاريخ : / 9 201
A2: مستشفى غر النوبارية المركزي إذن صـــــــرف عــــــــــــــــلاج
A3: إسم المريض : رقم القــرار رقم الفاتوره 3 المبلغ
A4: خالد عبدالمعطى عبدالحميد | D4: 11990281
A5: م | B5: اسم الصنف | C5: الكميه | D5: سعر الوحده | E5: إجمالى القيمة | F5: سعر الشراء | G5: سعر البيع | H5: الفرق
A6: 1 | B6: انسولين | C6: 3 | D6: 36 | F6: =C6*D6 -> 108 | G6: =F6+H6 -> 115.56 | H6: =F6*7% -> 7.56
A7: 2 | B7: ديبوفيت | C7: 4 | D7: 1.05 | F7: =C7*D7 -> 4.2 | G7: 4.494 | H7: =F7*7% -> 0.294
A8: 3 | B8: بيبزول | C8: 2 | D8: 6.72 | F8: 13.44 | G8: 14.3808 | H8: 0.9408
A9: 4 | B9: سيدوفاج500 | C9: 3 | D9: 0.98 | F9: 2.94 | G9: 3.1458 | H9: 0.2058
A10: 5 | F10: 0 | G10: 0 | H10: 0
A11: 6 | F11: 0 | G11: 0 | H11: 0
A12: 7 | F12: 0 | G12: 0 | H12: 0
A13: 8 | F13: 0 | G13: 0 | H13: 0
A14: 9 | F14: 0 | G14: 0 | H14: 0
A15: 10 | F15: 0 | G15: 0 | H15: 0
A16: 11 | F16: 0 | G16: 0 | H16: 0
A17: 12 | F17: 0 | G17: 0 | H17: 0
A18: 13 | F18: 0 | G18: 0 | H18: 0
A19: 14 | F19: 0 | G19: 0 | H19: 0
A20: الإجمالــــــــــى | F20: =SUM(F6:F19) -> 128.58 | G20: =SUM(G6:G19) -> 137.5806 | H20: =SUM(H6:H19) -> 9.0006
A21: اداري الوحده | D21: امين المخزن | G21: د يعتمد

Sheet 4
A1: الإدارة الصحية بغرب النوبارية التاريخ : / 201
A2: مستشفى غر النوبارية المركزي إذن صـــــــرف عــــــــــــــــلاج
A3: إسم المريض : رقم القــرار رقم الفاتوره 4 المبلغ
A4: منى سعد عبدالحميدمنصور | D4: 13410957
A5: م | B5: إســــــــــم الصنف | C5: الكمية | D5: سعر الوحدة | E5: إجمالى القيمة | F5: سعر الشراء | G5: سعر البيع | H5: الفرق
A6: 1 | B6: انسولين | C6: 3 | D6: 36 | F6: =C6*D6 -> 108 | G6: =F6+H6 -> 115.56 | H6: =F6*7% -> 7.56
A7: 2 | B7: فاركوفيت | C7: 3 | D7: 3.36 | F7: =C7*D7 -> 10.08 | G7: =F7+H7 -> 10.7856 | H7: =F7*7% -> 0.7056
A8: 3 | B8: سيدوفاج 500 | C8: 3 | D8: 0.98 | F8: 2.94 | G8: 3.1458 | H8: 0.2058
A9: 4 | B9: بيبزول | C9: 2 | D9: 6.72 | F9: 13.44 | G9: 14.3808 | H9: 0.9408
A10: 5 | F10: 0 | G10: 0 | H10: 0
A11: 6 | F11: 0 | G11: 0 | H11: 0
A12: 7 | F12: 0 | G12: 0 | H12: 0
A13: 8 | F13: 0 | G13: 0 | H13: 0
A14: 9 | F14: 0 | G14: 0 | H14: 0
A15: 10 | F15: 0 | G15: 0 | H15: 0
A16: 11 | F16: 0 | G16: 0 | H16: 0
A17: 12 | F17: 0 | G17: 0 | H17: 0
A18: 13 | F18: 0 | G18: 0 | H18: 0
A19: 14 | F19: 0 | G19: 0 | H19: 0
A20: الإجمالــــــــــى | F20: =SUM(F6:F19) -> 134.46 | G20: =SUM(G6:G19) -> 143.8722 | H20: =SUM(H6:H19) -> 9.4122
A21: اداري الوحده | D21: امين المخزن | G21: د يعتمد

Sheet 5
A1: الإدارة الصحية بغرب النوبارية التاريخ : / 201
A2: مستشفى غر النوبارية المركزي إذن صـــــــرف عــــــــــــــــلاج
A3: إسم المريض : رقم القــرار رقم الفاتوره 5 المبلغ
A4: سوميه منصور احمد اسماعيل | D4: 12448707
A5: م | B5: إســــــــــم الصنف | C5: الكمية | D5: سعر الوحدة | E5: إجمالى القيمة | F5: سعر الشراء | G5: سعر البيع | H5: الفرق
A6: 1 | B6: انسولين | C6: 3 | D6: 36 | F6: =C6*D6 -> 108 | G6: =F6+H6 -> 115.56 | H6: =F6*7% -> 7.56
A7: 2 | B7: ديبوفيت | C7: 4 | D7: 1.05 | F7: =C7*D7 -> 4.2 | G7: =F7+H7 -> 4.494 | H7: =F7*7% -> 0.294
A8: 3 | B8: كلاتكس | C8: 3 | D8: 1.94 | F8: 5.82 | G8: 6.2274 | H8: 0.4074
A9: 4 | B9: نيروتارد | C9: 6 | D9: 2.01 | F9: 12.06 | G9: 12.9042 | H9: 0.8442
A10: 5 | B10: بستول10 | C10: 3 | D10: 2.94 | F10: 8.82 | G10: 9.4374 | H10: 0.6174
A11: 6 | B11: بيبزول | C11: 2 | D11: 6.72 | F11: 13.44 | G11: 14.3808 | H11: 0.9408
A12: 7 | F12: 0 | G12: 0 | H12: 0
A13: 8 | F13: 0 | G13: 0 | H13: 0
A14: 9 | F14: 0 | G14: 0 | H14: 0
A15: 10 | F15: 0 | G15: 0 | H15: 0
A16: 11 | F16: 0 | G16: 0 | H16: 0
A17: 12 | F17: 0 | G17: 0 | H17: 0
A18: 13 | F18: 0 | G18: 0 | H18: 0
A19: 14 | F19: 0 | G19: 0 | H19: 0
B20: الإجمالــــــــــى | F20: =SUM(F6:F19) -> 152.34 | G20: =SUM(G6:G19) -> 163.0038 | H20: =SUM(H6:H19) -> 10.6638
A21: اداري الوحده | D21: امين المخزن | G21: د يعتمد

Sheet 6
A1: الإدارة الصحية بغرب النوبارية التاريخ : / 201
A2: مستشفى غر النوبارية المركزي إذن صـــــــرف عــــــــــــــــلاج
A3: إسم المريض رقم القــرار رقم الفاتوره 6 المبلغ
A4: ساميه عثمان فؤاد كامل | D4: 12394251
A5: م | B5: إســــــــــم الصنف | C5: الكمية | D5: سعر الوحدة | E5: إجمالى القيمة | F5: سعر الشراء | G5: سعر البيع | H5: الفرق
A6: 1 | B6: انسولين | C6: 3 | D6: 36 | F6: =C6*D6 -> 108 | G6: =F6+H6 -> 115.56 | H6: =F6*7% -> 7.56
A7: 2 | B7: فاركوفيت | C7: 3 | D7: 3.36 | F7: =C7*D7 -> 10.08 | G7: =F7+H7 -> 10.7856 | H7: =F7*7% -> 0.7056
A8: 3 | B8: ازماتيك | C8: 4 | D8: 3.48 | F8: 13.92 | G8: 14.8944 | H8: 0.9744
A9: 4 | B9: سيدوفاج500 | C9: 6 | D9: 0.98 | F9: 5.88 | G9: 6.2916 | H9: 0.4116
A10: 5 | B10: فاركوبريل بلس | C10: 6 | D10: 1.32 | F10: 7.92 | G10: 8.4744 | H10: 0.5544
A11: 6 | B11: ايزاستانين | C11: 3 | D11: 8.99 | F11: 26.97 | G11: 28.8579 | H11: 1.8879
A12: 7 | F12: 0 | G12: 0 | H12: 0
A13: 8 | F13: 0 | G13: 0 | H13: 0
A14: 9 | F14: 0 | G14: 0 | H14: 0
A15: 10 | F15: 0 | G15: 0 | H15: 0
A16: 11 | F16: 0 | G16: 0 | H16: 0
A17: 12 | F17: 0 | G17: 0 | H17: 0
A18: 13 | F18: 0 | G18: 0 | H18: 0
A19: 14 | F19: 0 | G19: 0 | H19: 0
A20: الإجمالــــــــــى | F20: =SUM(F6:F19) -> 172.77 | G20: =SUM(G6:G19) -> 184.8639 | H20: =SUM(H6:H19) -> 12.0939
A21: اداري الوحده | D21: امين المخزن | G21: د يعتمد

Sheet 7
A1: الإدارة الصحية بغرب النوبارية التاريخ : / 201
A2: مستشفى غر النوبارية المركزي إذن صـــــــرف عــــــــــــــــلاج
A3: إسم المريض : رقم القــرار رقم الفاتوره 7 المبلغ
A4: سماح محمد النجيلى ابو جوده | D4: 13555453
A5: م | B5: إســــــــــم الصنف | C5: الكمية | D5: سعر الوحدة | E5: إجمالى القيمة | F5: سعر الشراء | G5: سعر البيع | H5: الفرق
A6: 1 | B6: جلوكان | C6: 6 | D6: 2.63 | F6: =C6*D6 -> 15.78 | G6: =F6+H6 -> 16.8846 | H6: =F6*7% -> 1.1046
A7: 2 | B7: ديبوفيت | C7: 4 | D7: 1.05 | F7: =C7*D7 -> 4.2 | G7: =F7+H7 -> 4.494 | H7: =F7*7% -> 0.294
A8: 3 | B8: ايجيرو5محم | C8: 3 | D8: 1.5 | F8: 4.5 | G8: 4.815 | H8: 0.315
A9: 4 | B9: ايزاستانين | C9: 3 | D9: 8.99 | F9: 26.97 | G9: 28.8579 | H9: 1.8879
A10: 5 | F10: 0 | G10: 0 | H10: 0
A11: 6 | F11: 0 | G11: 0 | H11: 0
A12: 7 | F12: 0 | G12: 0 | H12: 0
A13: 8 | F13: 0 | G13: 0 | H13: 0
A14: 9 | F14: 0 | G14: 0 | H14: 0
A15: 10 | F15: 0 | G15: 0 | H15: 0
A16: 11 | F16: 0 | G16: 0 | H16: 0
A17: 12 | F17: 0 | G17: 0 | H17: 0
A18: 13 | F18: 0 | G18: 0 | H18: 0
A19: 14 | F19: 0 | G19: 0 | H19: 0
A20: الإجمالــــــــــى | F20: =SUM(F6:F19) -> 51.45 | G20: =SUM(G6:G19) -> 55.0515 | H20: =SUM(H6:H19) -> 3.6015
A21: اداري الوحده | D21: امين المخزن | G21: د يعتمد

Sheet 8
A1: ح
A2: مستشفى غر النوبارية المركزي إذن صـــــــرف عــــــــــــــــلاج
A3: إسم المريض : رقم القــرار رقم الفاتوره 8 المبلغ
A4: احمد عبدالرحيم على احمد | D4: 13602145
A5: م | B5: إســــــــــم الصنف | C5: الكمية | D5: سعر الوحدة | E5: إجمالى القيمة | F5: سعر الشراء | G5: سعر البيع | H5: الفرق
A6: 1 | B6: سيدوفاج500 | C6: 3 | D6: 0.98 | F6: =C6*D6 -> 2.94 | G6: =F6+H6 -> 3.1458 | H6: =F6*7% -> 0.2058
A7: 2 | B7: ديكبيركام جيل | C7: 4 | D7: 5.1 | F7: =C7*D7 -> 20.4 | G7: =F7+H7 -> 21.828 | H7: =F7*7% -> 1.428
A8: 3 | B8: بيبزول | C8: 2 | D8: 6.72 | F8: 13.44 | G8: 14.3808 | H8: 0.9408
A9: 4 | B9: ديبوفيت | C9: 4 | D9: 1.05 | F9: 4.2 | G9: 4.494 | H9: 0.294
A10: 5 | B10: فاركوبريل بلس | C10: 3 | D10: 1.32 | F10: 3.96 | G10: 4.2372 | H10: 0.2772
A11: 6 | B11: اماريل4 | C11: 6 | D11: 1.22 | F11: 7.32 | G11: 7.8324 | H11: 0.5124
A12: 7 | B12: بروفين | C12: 3 | D12: 4 | F12: 12 | G12: 12.84 | H12: 0.84
A13: 8 | B13: ريلاكس | C13: 3 | D13: 1.8 | F13: 5.4 | G13: 5.778 | H13: 0.378
A14: 9 | B14: ايزاستانين | C14: 3 | D14: 8.99 | F14: 26.97 | G14: 28.8579 | H14: 1.8879
A15: 10 | F15: 0 | G15: 0 | H15: 0
A16: 11 | F16: 0 | G16: 0 | H16: 0
A17: 12 | F17: 0 | G17: 0 | H17: 0
A18: 13 | F18: 0 | G18: 0 | H18: 0
A19: 14 | F19: 0 | G19: 0 | H19: 0
A20: الإجمالــــــــــى | F20: =SUM(F6:F19) -> 96.63 | G20: =SUM(G6:G19) -> 103.3941 | H20: =SUM(H6:H19) -> 6.7641
A21: اداري الوحده | D21: امين المخزن | G21: د يعتمد

Sheet 9
A1: الإدارة الصحية بغرب النوبارية التاريخ : / 201
A2: مستشفى غر النوبارية المركزي إذن صـــــــرف عــــــــــــــــلاج
A3: إسم المريض رقم القــرار رقم الفاتوره 9 المبلغ
A4: احمد عبدالسلام عبدالواحد | D4: 11915237
A5: م | B5: إســــــــــم الصنف | C5: الكمية | D5: سعر الوحدة | E5: إجمالى القيمة | F5: سعر الشراء | G5: سعر البيع | H5: الفرق
A6: 1 | B6: انسولين | C6: 3 | D6: 36 | F6: =C6*D6 -> 108 | G6: =F6+H6 -> 115.56 | H6: =F6*7% -> 7.56
A7: 2 | B7: ديبوفيت | C7: 4 | D7: 1.05 | F7: =C7*D7 -> 4.2 | G7: =F7+H7 -> 4.494 | H7: =F7*7% -> 0.294
A8: 3 | B8: سيدوفاج500 | C8: 3 | D8: 0.98 | F8: 2.94 | G8: 3.1458 | H8: 0.2058
A9: 4 | B9: بيبزول | C9: 2 | D9: 6.72 | F9: 13.44 | G9: 14.3808 | H9: 0.9408
A10: 5 | B10: اتور80 | C10: 3 | D10: 19.9 | F10: 59.7 | G10: 63.879 | H10: 4.179
A11: 6 | F11: 0 | G11: 0 | H11: 0
A12: 7 | F12: 0 | G12: 0 | H12: 0
A13: 8 | F13: 0 | G13: 0 | H13: 0
A14: 9 | F14: 0 | G14: 0 | H14: 0
A15: 10 | F15: 0 | G15: 0 | H15: 0
A16: 11 | F16: 0 | G16: 0 | H16: 0
A17: 12 | F17: 0 | G17: 0 | H17: 0
A18: 13 | F18: 0 | G18: 0 | H18: 0
A19: 14 | F19: 0 | G19: 0 | H19: 0
A20: الإجمالــــــــــى | F20: =SUM(F6:F19) -> 188.28 | G20: =SUM(G6:G19) -> 201.4596 | H20: =SUM(H6:H19) -> 13.1796
A21: اداري الوحده | D21: امين المخزن | G21: د يعتمد

Sheet 10
A1: الإدارة الصحية بغرب النوبارية التاريخ : / 9 201
A2: مستشفى غر النوبارية المركزي إذن صـــــــرف عــــــــــــــــلاج
A3: إسم المريض : رقم القــرار رقم الفاتوره 10 المبلغ
A4: صالح احمد محمد محمد | D4: 13156035
A5: م | B5: إســــــــــم الصنف | C5: الكمية | D5: سعر الوحدة | E5: إجمالى القيمة | F5: سعر الشراء | G5: سعر البيع | H5: الفرق
A6: 1 | B6: اماريل | C6: 3 | D6: 0.68 | F6: =C6*D6 -> 2.04 | G6: =F6+H6 -> 2.1828 | H6: =F6*7% -> 0.1428
A7: 2 | B7: بستول2,5 | C7: 3 | D7: 1.94 | F7: =C7*D7 -> 5.82 | G7: =F7+H7 -> 6.2274 | H7: =F7*7% -> 0.4074
A8: 3 | B8: ايزاستانين | C8: 3 | D8: 8.99 | F8: 26.97 | G8: 28.8579 | H8: 1.8879
A9: 4 | B9: بيبزول | C9: 2 | D9: 6.72 | F9: 13.44 | G9: 14.3808 | H9: 0.9408
A10: 5 | B10: اسبرين | C10: 3 | D10: 1.11 | F10: 3.33 | G10: 3.5631 | H10: 0.2331
A11: 6 | B11: كلاتكس | C11: 3 | D11: 1.94 | F11: 5.82 | G11: 6.2274 | H11: 0.4074
A12: 7 | F12: 0 | G12: 0 | H12: 0
A13: 8 | F13: 0 | G13: 0 | H13: 0
A14: 9 | F14: 0 | G14: 0 | H14: 0
A15: 10 | F15: 0 | G15: 0 | H15: 0
A16: 11 | F16: 0 | G16: 0 | H16: 0
A17: 12 | F17: 0 | G17: 0 | H17: 0
A18: 13 | F18: 0 | G18: 0 | H18: 0
A19: 14 | F19: 0 | G19: 0 | H19: 0
A20: الإجمالــــــــــى | F20: =SUM(F6:F19) -> 57.42 | G20: =SUM(G6:G19) -> 61.4394 | H20: =SUM(H6:H19) -> 4.0194
A21: اداري الوحده | D21: امين المخزن | G21: د يعتمد

Sheet 11
A1: الإدارة الصحية بغرب النوبارية التاريخ : / 9 201
A2: مستشفى غر النوبارية المركزي إذن صـــــــرف عــــــــــــــــلاج
A3: إسم المريض : رقم القــرار رقم الفاتوره 11 المبلغ
A4: عبدالمعطى صالح محمود | D4: 12087012
A5: م | B5: إســــــــــم الصنف | C5: الكمية | D5: سعر الوحدة | E5: إجمالى القيمة | F5: سعر الشراء | G5: سعر البيع | H5: الفرق
A6: 1 | B6: انسولين | C6: 4 | D6: 36 | F6: =C6*D6 -> 144 | G6: =F6+H6 -> 154.08 | H6: =F6*7% -> 10.08
A7: 2 | B7: فاركوفيت | C7: 3 | D7: 3.36 | F7: =C7*D7 -> 10.08 | G7: =F7+H7 -> 10.7856 | H7: =F7*7% -> 0.7056
A8: 3 | B8: ايزاستانين | C8: 3 | D8: 8.99 | F8: 26.97 | G8: 28.8579 | H8: 1.8879
A9: 4 | B9: بيبزول | C9: 2 | D9: 6.72 | F9: 13.44 | G9: 14.3808 | H9: 0.9408
A10: 5 | F10: 0 | G10: 0 | H10: 0
A11: 6 | F11: 0 | G11: 0 | H11: 0
A12: 7 | F12: 0 | G12: 0 | H12: 0
A13: 8 | F13: 0 | G13: 0 | H13: 0
A14: 9 | F14: 0 | G14: 0 | H14: 0
A15: 10 | F15: 0 | G15: 0 | H15: 0
A16: 11 | F16: 0 | G16: 0 | H16: 0
A17: 12 | F17: 0 | G17: 0 | H17: 0
A18: 13 | F18: 0 | G18: 0 | H18: 0
A19: 14 | F19: 0 | G19: 0 | H19: 0
A20: الإجمالــــــــــى | F20: =SUM(F6:F19) -> 194.49 | G20: =SUM(G6:G19) -> 208.1043 | H20: =SUM(H6:H19) -> 13.6143
A21: اداري الوحده | D21: امين المخزن | G21: د يعتمد

Sheet 12
A1: الإدارة الصحية بغرب النوبارية التاريخ : / 9 201
A2: مستشفى غر النوبارية المركزي إذن صـــــــرف عــــــــــــــــلاج
A3: إسم المريض : رقم القــرار رقم الفاتوره 12 المبلغ
A4: جمعه غريب عبدالمولى | D4: 12480433
A5: م | B5: إســــــــــم الصنف | C5: الكمية | D5: سعر الوحدة | E5: إجمالى القيمة | F5: سعر الشراء | G5: سعر البيع | H5: الفرق
A6: 1 | B6: انسولين | C6: 3 | D6: 36 | F6: =C6*D6 -> 108 | G6: =F6+H6 -> 115.56 | H6: =F6*7% -> 7.56
A7: 2 | B7: فاركوفيت | C7: 6 | D7: 3.36 | F7: =C7*D7 -> 20.16 | G7: =F7+H7 -> 21.5712 | H7: =F7*7% -> 1.4112
A8: 3 | B8: سينوبريل10 | C8: 6 | D8: 3.71 | F8: 22.26 | G8: 23.8182 | H8: 1.5582
A9: 4 | B9: بيبزول | C9: 2 | D9: 6.72 | F9: 13.44 | G9: 14.3808 | H9: 0.9408
A10: 5 | B10: اتور20 | C10: 4 | D10: 1.81 | F10: 7.24 | G10: 7.7468 | H10: 0.5068
A11: 6 | F11: 0 | G11: 0 | H11: 0
A12: 7 | F12: 0 | G12: 0 | H12: 0
A13: 8 | F13: 0 | G13: 0 | H13: 0
A14: 9 | F14: 0 | G14: 0 | H14: 0
A15: 10 | F15: 0 | G15: 0 | H15: 0
A16: 11 | F16: 0 | G16: 0 | H16: 0
A17: 12 | F17: 0 | G17: 0 | H17: 0
A18: 13 | F18: 0 | G18: 0 | H18: 0
A19: 14 | F19: 0 | G19: 0 | H19: 0
A20: الإجمالــــــــــى | F20: =SUM(F6:F19) -> 171.1 | G20: =SUM(G6:G19) -> 183.077 | H20: =SUM(H6:H19) -> 11.977
A21: اداري الوحده | D21: امين المخزن | G21: د يعتمد

Sheet 13
A1: الإدارة الصحية بغرب النوبارية التاريخ : / 9 201
A2: مستشفى غر النوبارية المركزي إذن صـــــــرف عــــــــــــــــلاج
A3: إسم المريض : رقم القــرار رقم الفاتوره 13 المبلغ
A4: فاطمه عامر ابراهيم | D4: 12419775
A5: م | B5: إســــــــــم الصنف | C5: الكمية | D5: سعر الوحدة | E5: إجمالى القيمة | F5: سعر الشراء | G5: سعر البيع | H5: الفرق
A6: 1 | B6: اتينولول | C6: 3 | D6: 1.74 | F6: =C6*D6 -> 5.22 | G6: =F6+H6 -> 5.5854 | H6: =F6*7% -> 0.3654
A7: 2 | B7: ديبوفيت | C7: 4 | D7: 1.05 | F7: =C7*D7 -> 4.2 | G7: =F7+H7 -> 4.494 | H7: =F7*7% -> 0.294
A8: 3 | B8: بيبزول | C8: 2 | D8: 6.72 | F8: 13.44 | G8: 14.3808 | H8: 0.9408
A9: 4 | F9: 0 | G9: 0 | H9: 0
A10: 5 | F10: 0 | G10: 0 | H10: 0
A11: 6 | F11: 0 | G11: 0 | H11: 0
A12: 7 | F12: 0 | G12: 0 | H12: 0
A13: 8 | F13: 0 | G13: 0 | H13: 0
A14: 9 | F14: 0 | G14: 0 | H14: 0
A15: 10 | F15: 0 | G15: 0 | H15: 0
A16: 11 | F16: 0 | G16: 0 | H16: 0
A17: 12 | F17: 0 | G17: 0 | H17: 0
A18: 13 | F18: 0 | G18: 0 | H18: 0
A19: 14 | F19: 0 | G19: 0 | H19: 0
A20: الإجمالــــــــــى | F20: =SUM(F6:F19) -> 22.86 | G20: =SUM(G6:G19) -> 24.4602 | H20: =SUM(H6:H19) -> 1.6002
A21: اداري الوحده | D21: امين المخزن | G21: د يعتمد

Sheet 14
A1: الإدارة الصحية بغرب النوبارية التاريخ : / 9 201
A2: مستشفى غر النوبارية المركزي إذن صـــــــرف عــــــــــــــــلاج
A3: إسم المريض : رقم القــرار رقم الفاتوره 14 المبلغ
A4: عبدالمنعم على محمد البسوسى | D4: 13421345
A5: م | B5: إســــــــــم الصنف | C5: الكمية | D5: سعر الوحدة | E5: إجمالى القيمة | F5: سعر الشراء | G5: سعر البيع | H5: الفرق
A6: 1 | B6: نيروتارد | C6: 6 | D6: 2.01 | F6: =C6*D6 -> 12.06 | G6: =F6+H6 -> 12.9042 | H6: =F6*7% -> 0.8442
A7: 2 | B7: فاركوفيت | C7: 6 | D7: 3.36 | F7: =C7*D7 -> 20.16 | G7: =F7+H7 -> 21.5712 | H7: =F7*7% -> 1.4112
A8: 3 | B8: بيبزول | C8: 2 | D8: 6.72 | F8: 13.44 | G8: 14.3808 | H8: 0.9408
A9: 4 | B9: كلاتكس | C9: 6 | D9: 1.94 | F9: 11.64 | G9: 12.4548 | H9: 0.8148
A10: 5 | B10: فاستور | C10: 6 | D10: 1.52 | F10: 9.12 | G10: 9.7584 | H10: 0.6384
A11: 6 | B11: اسبرين | C11: 3 | D11: 1.11 | F11: 3.33 | G11: 3.5631 | H11: 0.2331
A12: 7 | F12: 0 | G12: 0 | H12: 0
A13: 8 | F13: 0 | G13: 0 | H13: 0
A14: 9 | F14: 0 | G14: 0 | H14: 0
A15: 10 | F15: 0 | G15: 0 | H15: 0
A16: 11 | F16: 0 | G16: 0 | H16: 0
A17: 12 | F17: 0 | G17: 0 | H17: 0
A18: 13 | F18: 0 | G18: 0 | H18: 0
A19: 14 | F19: 0 | G19: 0 | H19: 0
A20: الإجمالــــــــــى | F20: =SUM(F6:F19) -> 69.75 | G20: =SUM(G6:G19) -> 74.6325 | H20: =SUM(H6:H19) -> 4.8825
A21: اداري الوحده | D21: امين المخزن | G21: د يعتمد

Sheet 15
A1: الإدارة الصحية بغرب النوبارية التاريخ : / 9 201
A2: مستشفى غر النوبارية المركزي إذن صـــــــرف عــــــــــــــــلاج
A3: إسم المريض : رقم القــرار رقم الفاتوره 15 المبلغ
A4: السعيد على عبدالعال | D4: 11986130
A5: م | B5: إســــــــــم الصنف | C5: الكمية | D5: سعر الوحدة | E5: إجمالى القيمة | F5: سعر الشراء | G5: سعر البيع | H5: الفرق
A6: 1 | B6: انسولين | C6: 3 | D6: 36 | F6: =C6*D6 -> 108 | G6: =F6+H6 -> 115.56 | H6: =F6*7% -> 7.56
A7: 2 | B7: ديبوفيت | C7: 4 | D7: 1.05 | F7: =C7*D7 -> 4.2 | G7: =F7+H7 -> 4.494 | H7: =F7*7% -> 0.294
A8: 3 | F8: 0 | G8: 0 | H8: 0
A9: 4 | F9: 0 | G9: 0 | H9: 0
A10: 5 | F10: 0 | G10: 0 | H10: 0
A11: 6 | F11: 0 | G11: 0 | H11: 0
A12: 7 | F12: 0 | G12: 0 | H12: 0
A13: 8 | F13: 0 | G13: 0 | H13: 0
A14: 9 | F14: 0 | G14: 0 | H14: 0
A15: 10 | F15: 0 | G15: 0 | H15: 0
A16: 11 | F16: 0 | G16: 0 | H16: 0
A17: 12 | F17: 0 | G17: 0 | H17: 0
A18: 13 | F18: 0 | G18: 0 | H18: 0
A19: 14 | F19: 0 | G19: 0 | H19: 0
A20: الإجمالــــــــــى | F20: =SUM(F6:F19) -> 112.2 | G20: =SUM(G6:G19) -> 120.054 | H20: =SUM(H6:H19) -> 7.854
A21: اداري الوحده | D21: امين المخزن | G21: د يعتمد

Sheet 16
A1: الإدارة الصحية بغرب النوبارية التاريخ : / 9 201
A2: مستشفى غر النوبارية المركزي إذن صـــــــرف عــــــــــــــــلاج
A3: إسم المريض : رقم القــرار رقم الفاتوره 16 المبلغ
A4: فهيمه محمد عبدالعزيز الليثى | D4: 12038418
A5: م | B5: إســــــــــم الصنف | C5: الكمية | D5: سعر الوحدة | E5: إجمالى القيمة | F5: سعر الشراء | G5: سعر البيع | H5: الفرق
A6: 1 | B6: انسولين | C6: 3 | D6: 36 | F6: =C6*D6 -> 108 | G6: =F6+H6 -> 115.56 | H6: =F6*7% -> 7.56
A7: 2 | B7: فاركوفيت | C7: 6 | D7: 3.36 | F7: =C7*D7 -> 20.16 | G7: =F7+H7 -> 21.5712 | H7: =F7*7% -> 1.4112
A8: 3 | F8: 0 | G8: 0 | H8: 0
A9: 4 | F9: 0 | G9: 0 | H9: 0
A10: 5 | F10: 0 | G10: 0 | H10: 0
A11: 6 | F11: 0 | G11: 0 | H11: 0
A12: 7 | F12: 0 | G12: 0 | H12: 0
A13: 8 | F13: 0 | G13: 0 | H13: 0
A14: 9 | F14: 0 | G14: 0 | H14: 0
A15: 10 | F15: 0 | G15: 0 | H15: 0
A16: 11 | F16: 0 | G16: 0 | H16: 0
A17: 12 | F17: 0 | G17: 0 | H17: 0
A18: 13 | F18: 0 | G18: 0 | H18: 0
A19: 14 | F19: 0 | G19: 0 | H19: 0
A20: الإجمالــــــــــى | F20: =SUM(F6:F19) -> 128.16 | G20: =SUM(G6:G19) -> 137.1312 | H20: =SUM(H6:H19) -> 8.9712
A21: اداري الوحده | D21: امين المخزن | G21: د يعتمد

Sheet 17
A1: الإدارة الصحية بغرب النوبارية التاريخ : / 9 201
A2: مستشفى غر النوبارية المركزي إذن صـــــــرف عــــــــــــــــلاج
A3: إسم المريض : رقم القــرار رقم الفاتوره 17 المبلغ
A4: ناديه ابراهيم محمد الرملى | D4: 12488065
A5: م | B5: إســــــــــم الصنف | C5: الكمية | D5: سعر الوحدة | E5: إجمالى القيمة | F5: سعر الشراء | G5: سعر البيع | H5: الفرق
A6: 1 | B6: انسولين | C6: 3 | D6: 36 | F6: =C6*D6 -> 108 | G6: =F6+H6 -> 115.56 | H6: =F6*7% -> 7.56
A7: 2 | B7: فاركوبريل بلس | C7: 6 | D7: 1.32 | F7: =C7*D7 -> 7.92 | G7: =F7+H7 -> 8.4744 | H7: =F7*7% -> 0.5544
A8: 3 | B8: سيدوفاج500 | C8: 3 | D8: 0.98 | F8: 2.94 | G8: 3.1458 | H8: 0.2058
A9: 4 | B9: فاركوفيت | C9: 3 | D9: 3.36 | F9: 10.08 | G9: 10.7856 | H9: 0.7056
A10: 5 | B10: بيبزول | C10: 2 | D10: 6.72 | F10: 13.44 | G10: 14.3808 | H10: 0.9408
A11: 6 | B11: ديلانروا6,20 | C11: 9 | D11: 1.95 | F11: 17.55 | G11: 18.7785 | H11: 1.2285
A12: 7 | F12: 0 | G12: 0 | H12: 0
A13: 8 | F13: 0 | G13: 0 | H13: 0
A14: 9 | F14: 0 | G14: 0 | H14: 0
A15: 10 | F15: 0 | G15: 0 | H15: 0
A16: 11 | F16: 0 | G16: 0 | H16: 0
A17: 12 | F17: 0 | G17: 0 | H17: 0
A18: 13 | F18: 0 | G18: 0 | H18: 0
A19: 14 | F19: 0 | G19: 0 | H19: 0
A20: الإجمالــــــــــى | F20: =SUM(F6:F19) -> 159.93 | G20: =SUM(G6:G19) -> 171.1251 | H20: =SUM(H6:H19) -> 11.1951
A21: اداري الوحده | D21: امين المخزن | G21: د يعتمد

Sheet 18
A1: الإدارة الصحية بغرب النوبارية التاريخ : / 9 201
A2: مستشفى غر النوبارية المركزي إذن صـــــــرف عــــــــــــــــلاج
A3: إسم المريض : رقم القــرار رقم الفاتوره 18 المبلغ
A4: احلام محمد محمود محمد | D4: 13757624
A5: م | B5: إســــــــــم الصنف | C5: الكمية | D5: سعر الوحدة | E5: إجمالى القيمة | F5: سعر الشراء | G5: سعر البيع | H5: الفرق
A6: 1 | B6: سليمارين | C6: 3 | D6: 2.95 | F6: =C6*D6 -> 8.85 | G6: =F6+H6 -> 9.4695 | H6: =F6*7% -> 0.6195
A7: 2 | B7: هيبافورت | C7: 3 | D7: 2.8 | F7: =C7*D7 -> 8.4 | G7: =F7+H7 -> 8.988 | H7: =F7*7% -> 0.588
A8: 3 | B8: فاركوفيت | C8: 3 | D8: 3.36 | F8: 10.08 | G8: 10.7856 | H8: 0.7056
A9: 4 | B9: بيبزول | C9: 2 | D9: 6.72 | F9: 13.44 | G9: 14.3808 | H9: 0.9408
A10: 5 | F10: 0 | G10: 0 | H10: 0
A11: 6 | F11: 0 | G11: 0 | H11: 0
A12: 7 | F12: 0 | G12: 0 | H12: 0
A13: 8 | F13: 0 | G13: 0 | H13: 0
A14: 9 | F14: 0 | G14: 0 | H14: 0
A15: 10 | F15: 0 | G15: 0 | H15: 0
A16: 11 | F16: 0 | G16: 0 | H16: 0
A17: 12 | F17: 0 | G17: 0 | H17: 0
A18: 13 | F18: 0 | G18: 0 | H18: 0
A19: 14 | F19: 0 | G19: 0 | H19: 0
A20: الإجمالــــــــــى | F20: =SUM(F6:F19) -> 40.77 | G20: =SUM(G6:G19) -> 43.6239 | H20: =SUM(H6:H19) -> 2.8539
A21: اداري الوحده | D21: امين المخزن | G21: د يعتمد

Sheet 19
A1: الإدارة الصحية بغرب النوبارية التاريخ : / 9 201
A2: مستشفى غر النوبارية المركزي إذن صـــــــرف عــــــــــــــــلاج
A3: إسم المريض : رقم القــرار رقم الفاتوره 19 المبلغ
A4: جميله محمد محمد حمد | D4: 13386457
A5: م | B5: إســــــــــم الصنف | C5: الكمية | D5: سعر الوحدة | E5: إجمالى القيمة | F5: سعر الشراء | G5: سعر البيع | H5: الفرق
A6: 1 | B6: انسولين | C6: 3 | D6: 36 | F6: =C6*D6 -> 108 | G6: =F6+H6 -> 115.56 | H6: =F6*7% -> 7.56
A7: 2 | B7: فاركوفيت | C7: 3 | D7: 3.36 | F7: =C7*D7 -> 10.08 | G7: =F7+H7 -> 10.7856 | H7: =F7*7% -> 0.7056
A8: 3 | B8: كابوتن25محم | C8: 3 | D8: 0.96 | F8: 2.88 | G8: 3.0816 | H8: 0.2016
A9: 4 | F9: 0 | G9: 0 | H9: 0
A10: 5 | F10: 0 | G10: 0 | H10: 0
A11: 6 | F11: 0 | G11: 0 | H11: 0
A12: 7 | F12: 0 | G12: 0 | H12: 0
A13: 8 | F13: 0 | G13: 0 | H13: 0
A14: 9 | F14: 0 | G14: 0 | H14: 0
A15: 10 | F15: 0 | G15: 0 | H15: 0
A16: 11 | F16: 0 | G16: 0 | H16: 0
A17: 12 | F17: 0 | G17: 0 | H17: 0
A18: 13 | F18: 0 | G18: 0 | H18: 0
A19: 14 | F19: 0 | G19: 0 | H19: 0
A20: الإجمالــــــــــى | F20: =SUM(F6:F19) -> 120.96 | G20: =SUM(G6:G19) -> 129.4272 | H20: =SUM(H6:H19) -> 8.4672
A21: اداري الوحده | D21: امين المخزن | G21: د يعتمد

Sheet 20
A1: الإدارة الصحية بغرب النوبارية التاريخ : / 9 201
A2: مستشفى غر النوبارية المركزي إذن صـــــــرف عــــــــــــــــلاج
A3: إسم المريض : رقم القــرار رقم الفاتوره 20 المبلغ
A4: نجيه حسين عبدالقوى | D4: 12448878
A5: م | B5: إســــــــــم الصنف | C5: الكمية | D5: سعر الوحدة | E5: إجمالى القيمة | F5: سعر الشراء | G5: سعر البيع | H5: الفرق
A6: 1 | B6: ديبوفيت | C6: 4 | D6: 1.05 | F6: =C6*D6 -> 4.2 | G6: =F6+H6 -> 4.494 | H6: =F6*7% -> 0.294
A7: 2 | B7: بيبزول | C7: 2 | D7: 6.72 | F7: =C7*D7 -> 13.44 | G7: =F7+H7 -> 14.3808 | H7: =F7*7% -> 0.9408
A8: 3 | B8: سليمارين | C8: 3 | D8: 2.95 | F8: 8.85 | G8: 9.4695 | H8: 0.6195
A9: 4 | B9: هيبافورت | C9: 9 | D9: 2.8 | F9: 25.2 | G9: 26.964 | H9: 1.764
A10: 5 | F10: 0 | G10: 0 | H10: 0
A11: 6 | F11: 0 | G11: 0 | H11: 0
A12: 7 | F12: 0 | G12: 0 | H12: 0
A13: 8 | F13: 0 | G13: 0 | H13: 0
A14: 9 | F14: 0 | G14: 0 | H14: 0
A15: 10 | F15: 0 | G15: 0 | H15: 0
A16: 11 | F16: 0 | G16: 0 | H16: 0
A17: 12 | F17: 0 | G17: 0 | H17: 0
A18: 13 | F18: 0 | G18: 0 | H18: 0
A19: 14 | F19: 0 | G19: 0 | H19: 0
A20: الإجمالــــــــــى | F20: =SUM(F6:F19) -> 51.69 | G20: =SUM(G6:G19) -> 55.3083 | H20: =SUM(H6:H19) -> 3.6183
A21: اداري الوحده | D21: امين المخزن | G21: د يعتمد

Sheet repport
A1: مديرية الصحة بالبحيرة شهر 8
A2: الإدارة الصحية بغرب النوبارية كشف رقم1
A3: مستشفــى غرب النوبارية
A4: العلاج على نفقة الدولة
A5: م | B5: إسم المريض | C5: رقم القرار | D5: سعر الشراء | E5: 7 في | F5: سعر البيع | G5: الكشف | H5: انسولين
A6: 2 | B6: هدى عبدالفتاح احمد احمد | C6: 11897043 | D6: 108 | F6: 115.56 | L6: اضغط هنا في حال تم التعديل على اسماء الادوية
A7: 3 | B7: خالد عبدالمعطى عبدالحميد | C7: 11990281 | D7: 108 | F7: 115.56
A8: 4 | B8: منى سعد عبدالحميدمنصور | C8: 13410957 | D8: 108 | F8: 115.56 | L8: اختر اسم الدواء من القائمة المنسدلة
A9: 5 | B9: سوميه منصور احمد اسماعيل | C9: 12448707 | D9: 108 | F9: 115.56
A10: 6 | B10: ساميه عثمان فؤاد كامل | C10: 12394251 | D10: 108 | F10: 115.56
A11: 9 | B11: احمد عبدالسلام عبدالواحد | C11: 11915237 | D11: 108 | F11: 115.56
A12: 11 | B12: عبدالمعطى صالح محمود | C12: 12087012 | D12: 144 | F12: 154.08
A13: 12 | B13: جمعه غريب عبدالمولى | C13: 12480433 | D13: 108 | F13: 115.56
A14: 15 | B14: السعيد على عبدالعال | C14: 11986130 | D14: 108 | F14: 115.56
A15: 16 | B15: فهيمه محمد عبدالعزيز الليثى | C15: 12038418 | D15: 108 | F15: 115.56
A16: 17 | B16: ناديه ابراهيم محمد الرملى | C16: 12488065 | D16: 108 | F16: 115.56
A17: 19 | B17: جميله محمد محمد حمد | C17: 13386457 | D17: 108 | F17: 115.56
A26: الاجمالي | D26: =SUM(D6:D25) -> 1332 | E26: =SUM(E6:E25) -> 0 | F26: =SUM(F6:F25) -> 1425.24 | G26: =SUM(G6:G25) -> 0 | H26: =SUM(H6:H25) -> 0
B29: الإدارى يعتمد ،،،
A30: مدير المستشفــــى
